bitfinex/quotes_ETHUSD_20250430
["timestamp","ask_amount","ask_price","bid_price","bid_amount"]
[1746014526135,0.24534736,1815.6,1815.5,6.60950584]
[1746014526428,0.24534736,1815.6,1815.5,7.36060584]
[1746014526705,11.65676955,1816.0,1815.6,5.50775752]
[1746014526905,0.23395509,1815.9,1815.7,4.572]
[1746014527092,5.740915,1815.9,1815.7,4.572]
[1746014527291,0.23395509,1815.8,1815.7,4.572]
[1746014527493,0.74904841,1815.8,1815.7,4.572]
[1746014528006,1.05808155,1815.8,1815.7,4.572]
[1746014528205,1.05808155,1815.8,1815.7,10.07951776]
[1746014528366,1.05808155,1815.8,1815.7,12.3893475]
[1746014528768,1.05808155,1815.8,1815.7,6.88182974]
[1746014529096,0.54298823,1815.8,1815.7,6.88182974]
[1746014529410,0.23395509,1815.8,1815.7,4.572]
[1746014530118,6.25614135,1815.8,1815.7,4.572]
[1746014531311,6.5651801,1815.8,1815.7,4.572]
[1746014534523,6.5651801,1815.8,1815.3,0.7525]
[1746014534524,5.50803234,1815.6,1815.1,6.29662488]
[1746014534678,0.23777559,1815.5,1815.2,10.0810198]
[1746014534876,0.23777559,1815.5,1815.3,6.27140632]
[1746014535211,0.23777559,1815.5,1815.3,0.7627]
[1746014535508,0.24096802,1815.4,1815.3,0.7627]
[1746014535674,0.23591033,1815.4,1815.3,6.27130986]
[1746014536311,0.23591033,1815.6,1815.3,6.27130986]
[1746014536511,0.51522815,1815.5,1815.4,0.62713099]
[1746014536710,0.75113848,1815.5,1815.4,0.62713099]
[1746014537102,0.75113848,1815.5,1815.4,6.13555888]
[1746014537413,0.23591033,1815.5,1815.4,6.93045888]
[1746014537905,0.23366152,1815.5,1815.4,1.42203099]
[1746014538108,0.74883477,1815.7,1815.4,6.93045888]
[1746014538408,0.23366152,1815.6,1815.4,1.42203099]
[1746014539200,0.23366152,1815.6,1815.4,0.7949]
[1746014539781,0.2397064,1815.5,1815.4,6.30330549]
[1746014539977,0.2397064,1815.5,1815.4,0.7949]
[1746014540390,0.2397064,1815.5,1815.4,6.30332789]
[1746014540586,0.2397064,1815.5,1815.4,0.7949]
[1746014540785,7.19121037,1815.9,1815.5,5.50803491]
[1746014541006,0.23383615,1815.8,1815.7,0.793]
[1746014541180,0.54295578,1815.8,1815.7,0.793]
[1746014541505,1.05815138,1815.8,1815.7,0.793]
[1746014541809,1.05815138,1815.8,1815.6,5.3974]
[1746014541979,0.24745675,1815.7,1815.6,5.3974]
[1746014542825,0.24240008,1815.8,1815.6,5.3974]
[1746014543120,0.24240008,1815.8,1815.6,10.90521378]
[1746014543321,0.24240008,1815.7,1815.6,12.54652599]
[1746014543503,0.24240008,1815.9,1815.6,12.54652599]
[1746014543717,0.2482116,1815.9,1815.8,6.05721445]
[1746014544032,12.40918449,1816.4,1816.0,6.33186199]
[1746014544211,0.2482116,1816.3,1816.1,4.572]
[1746014544415,0.76323651,1816.3,1816.1,4.572]
[1746014544593,0.2482116,1816.2,1816.1,4.572]
[1746014544783,0.76323651,1816.2,1816.1,4.572]
[1746014544985,8.88915806,1816.2,1816.1,4.572]
[1746014545203,12.64285806,1816.2,1816.1,4.572]
[1746014549725,6.57812932,1816.2,1816.1,4.572]
[1746014549926,8.26226137,1816.2,1816.1,4.572]
[1746014550132,6.57812932,1816.2,1816.1,4.572]
[1746014551118,1.07212778,1816.2,1816.1,4.572]
[1746014551431,0.76323651,1816.2,1816.1,4.572]
[1746014553112,0.76323651,1816.2,1816.1,6.39995894]
[1746014553530,0.2482116,1816.2,1816.1,11.90626365]
[1746014553733,0.23415608,1816.2,1816.1,11.90626365]
[1746014554210,0.23415608,1816.2,1816.1,11.90607087]
[1746014554411,6.26207193,1816.8,1816.4,5.50538256]
[1746014554636,3.74837324,1816.7,1816.5,5.3821]
[1746014554933,0.74907548,1816.6,1816.5,5.3821]
[1746014557108,0.23485832,1816.6,1816.5,5.3821]
[1746014559069,0.23485832,1816.6,1816.4,4.569]
[1746014559070,6.28479221,1816.5,1816.4,4.569]
[1746014559229,6.53131783,1816.5,1816.4,4.569]
[1746014559547,7.04473695,1816.5,1816.4,4.569]
[1746014560533,6.53131783,1816.5,1816.4,4.569]
[1746014561754,7.04467959,1816.5,1816.4,4.569]
[1746014562058,6.26497959,1816.5,1816.4,4.569]
[1746014562552,0.75988738,1816.5,1816.4,4.569]
[1746014563254,6.26497959,1816.5,1816.4,4.569]
[1746014563423,5.75161783,1816.5,1816.4,4.569]
[1746014564155,0.24652562,1816.5,1816.4,4.569]
[1746014564358,5.75161783,1816.5,1816.4,4.569]
[1746014564650,6.26502499,1816.5,1816.4,4.569]
[1746014565763,6.26502499,1816.5,1816.4,4.569]
[1746014566443,7.94915704,1816.5,1816.4,4.569]
[1746014567057,8.25743434,1816.5,1816.4,4.569]
[1746014573368,14.08593776,1816.5,1816.4,4.569]
[1746014576471,20.23593776,1816.5,1816.4,4.569]
[1746014577673,20.63939497,1816.5,1816.4,4.569]
[1746014578565,7.21821008,1816.5,1816.4,4.569]
[1746014580277,1.06821008,1816.5,1816.4,5.341]
[1746014581274,0.75993278,1816.5,1816.4,5.341]
[1746014582179,0.75993278,1816.5,1816.4,10.84639528]
[1746014582873,0.24652562,1816.5,1816.4,10.84639528]
[1746014583074,0.24652562,1816.5,1816.4,12.48158871]
[1746014583741,11.65437111,1816.8,1816.4,12.48158871]
[1746014583742,5.73987007,1816.7,1816.4,6.97619343]
[1746014583954,6.04917125,1816.6,1816.4,5.341]
[1746014584245,0.75025081,1816.5,1816.4,5.341]
[1746014584440,0.75025081,1816.5,1816.4,4.569]
[1746014584874,1.05921894,1816.5,1816.4,4.569]
[1746014591467,1.04821894,1816.5,1816.4,4.569]
[1746014591780,1.04821894,1816.5,1816.4,5.0259]
[1746014592676,0.73925081,1816.5,1816.4,11.30899528]
[1746014593086,0.22430272,1816.5,1816.4,11.30899528]
[1746014593248,6.15,1816.8,1816.5,5.50505071]
[1746014593455,0.51481386,1816.7,1816.5,5.50505071]
[1746014593651,0.25097134,1816.6,1816.5,5.50505071]
[1746014594154,0.24070777,1816.6,1816.5,5.50505071]
[1746014594857,0.24070777,1816.6,1816.4,11.30899528]
[1746014595064,6.15,1816.8,1816.5,5.50509221]
[1746014595472,0.23827756,1816.7,1816.5,5.50509221]
[1746014595670,0.23827756,1816.7,1816.6,0.55050922]
[1746014597170,0.23366822,1816.8,1816.6,0.55050922]
[1746014599493,0.23366822,1816.8,1816.6,6.05528291]
[1746014599662,0.23366822,1816.8,1816.6,6.83878291]
[1746014601162,0.23366822,1816.8,1816.6,1.33400922]
[1746014601386,0.23366822,1816.8,1816.6,6.83870265]
[1746014601596,0.23366822,1816.8,1816.7,0.68387027]
[1746014601995,0.23366822,1816.8,1816.6,6.83878523]
[1746014602574,0.23366822,1816.8,1816.6,6.83862181]
[1746014602785,0.23366822,1816.8,1816.7,5.50448615]
[1746014604581,0.23366822,1816.8,1816.7,6.29558615]
[1746014605178,0.23366822,1816.8,1816.7,6.84558615]
[1746014605381,0.23366822,1816.8,1816.7,8.13565695]
[1746014606766,0.23366822,1816.8,1816.7,7.58565695]
[1746014608005,0.23366822,1816.8,1816.7,1.2900708]
[1746014608168,0.23366822,1816.8,1816.6,6.05512181]
[1746014609072,0.23366822,1816.8,1816.6,0.55050922]
[1746014610083,0.23366822,1816.8,1816.6,6.05518564]
[1746014610291,0.23366822,1816.8,1816.6,0.55050922]
[1746014611018,0.23366822,1816.8,1816.7,5.50448615]
[1746014611178,0.23366822,1816.8,1816.7,6.10998569]
[1746014612018,0.23366822,1816.8,1816.7,0.60549954]
[1746014614077,0.23366822,1816.8,1816.7,5.17249954]
[1746014616597,0.23366822,1816.8,1816.7,10.73202217]
[1746014616795,0.23366822,1816.8,1816.7,12.08462066]
[1746014616999,0.5,1817.1,1817.0,6.30617732]
[1746014617307,0.74745718,1817.1,1817.0,8.03717039]
[1746014621891,0.74745718,1817.1,1817.0,7.48717039]
[1746014622879,0.74745718,1817.1,1817.0,1.18099307]
[1746014623078,0.74745718,1817.1,1817.0,5.50357732]
[1746014625017,0.74745718,1817.1,1817.0,23.66957732]
[1746014625215,0.74745718,1817.1,1817.0,24.49327732]
[1746014627785,0.74745718,1817.1,1817.0,23.66957732]
[1746014627997,0.74745718,1817.1,1817.0,18.166]
[1746014629885,1.26198476,1817.1,1817.0,18.166]
[1746014631685,0.74745718,1817.1,1817.0,18.166]
[1746014631886,0.74745718,1817.1,1817.0,23.66957732]
[1746014632087,0.24745718,1817.1,1817.0,27.38471496]
[1746014632940,0.25042359,1817.2,1817.0,27.38471496]
[1746014633102,0.25042359,1817.2,1817.1,4.566]
[1746014633293,0.76509925,1817.2,1817.1,4.566]
[1746014635007,1.07392643,1817.2,1817.1,4.566]
[1746014637539,6.28867444,1817.1,1817.0,18.166]
[1746014637846,2.99039358,1817.1,1817.0,22.732]
[1746014638016,1.84423664,1817.1,1817.0,22.732]
[1746014639632,9.56211108,1817.1,1817.0,18.166]
[1746014639797,5.50489565,1816.6,1816.2,18.166]
[1746014640113,1.03252639,1816.5,1816.3,4.565]
[1746014640298,0.24712639,1816.4,1816.3,4.565]
[1746014645533,5.75252167,1816.4,1816.3,4.565]
[1746014645706,6.57604402,1816.4,1816.3,4.565]
[1746014645911,7.02118712,1816.4,1816.3,4.565]
[1746014646212,8.75060376,1816.4,1816.3,4.565]
[1746014646820,5.50569839,1816.3,1816.2,18.166]
[1746014647004,8.73103463,1816.3,1816.2,22.732]
[1746014648037,9.14967232,1816.3,1816.2,22.732]
[1746014648333,3.22533624,1816.3,1816.2,22.732]
[1746014648633,1.54120419,1816.3,1816.2,22.732]
[1746014648932,6.53293713,1816.3,1816.2,22.732]
[1746014655003,13.0359082,1816.3,1816.2,22.732]
[1746014655635,13.44210741,1816.3,1816.2,22.732]
[1746014656007,13.95451048,1816.3,1816.2,22.732]
[1746014657113,13.44210741,1816.3,1816.2,22.732]
[1746014658011,13.44210741,1816.3,1816.2,4.566]
[1746014658455,6.31610471,1816.1,1815.6,18.175]
[1746014658746,6.31610471,1816.1,1815.7,4.567]
[1746014658747,8.00132322,1815.8,1815.7,4.567]
[1746014659050,5.5078211,1815.6,1815.5,4.567]
[1746014659250,6.30230744,1815.5,1815.1,6.35370602]
[1746014659414,6.30230744,1815.5,1815.2,4.567]
[1746014659616,6.30230744,1815.5,1815.2,5.6590706]
[1746014660247,0.23471435,1815.4,1815.2,5.6590706]
[1746014661447,0.23471435,1815.4,1815.3,6.26793133]
[1746014661650,3.0,1815.7,1815.4,5.50832836]
[1746014661849,0.24334806,1815.6,1815.4,5.50832836]
[1746014662039,0.24334806,1815.6,1815.4,6.68595433]
[1746014662242,1.92748011,1815.6,1815.3,0.7592]
[1746014662444,5.75156943,1815.5,1815.2,4.567]
[1746014662751,0.24334806,1815.4,1815.2,4.567]
[1746014666634,0.24511998,1815.3,1815.2,4.567]
[1746014666945,0.23686111,1815.3,1815.2,4.567]
[1746014667122,0.23686111,1815.5,1815.2,4.567]
[1746014667853,5.74499103,1815.5,1815.2,4.567]
[1746014668054,0.24614645,1815.4,1815.2,4.567]
[1746014668457,0.24614645,1815.4,1815.2,10.07599893]
[1746014668757,0.24694647,1815.5,1815.2,10.07599893]
[1746014668920,0.24694647,1815.5,1815.2,4.567]
[1746014669847,0.24694647,1815.5,1815.2,10.07596367]
[1746014670049,0.24694647,1815.5,1815.2,4.567]
[1746014671068,5.75507371,1815.5,1815.2,4.567]
[1746014671233,0.24770335,1815.4,1815.2,4.567]
[1746014671568,0.24770335,1815.4,1815.2,11.17080741]
[1746014671757,0.23408995,1815.3,1815.2,11.17080741]
[1746014672063,0.23408995,1815.5,1815.3,5.50855734]
[1746014672284,0.23408995,1815.5,1815.3,0.7908]
[1746014672586,0.23408995,1815.4,1815.3,6.29930551]
[1746014672762,0.248198,1815.4,1815.3,8.04631437]
[1746014672945,5.75617845,1815.6,1815.3,2.53780886]
[1746014673144,0.248198,1815.5,1815.3,0.7908]
[1746014673752,0.248198,1815.5,1815.3,6.29947236]
[1746014674672,0.24113414,1815.5,1815.3,6.29947236]
[1746014674871,5.50771829,1815.7,1815.3,6.29947236]
[1746014674872,0.24113414,1815.4,1815.3,6.29947236]
[1746014675053,0.24113414,1815.6,1815.3,6.29947236]
[1746014676453,5.74895679,1815.6,1815.3,0.7908]
[1746014676671,0.24051775,1815.5,1815.3,0.7908]
[1746014677052,0.24051775,1815.5,1815.2,11.17070277]
[1746014677247,0.24051775,1815.5,1815.3,1.11707028]
[1746014677469,0.24051775,1815.5,1815.2,10.83903194]
[1746014677673,5.74870399,1815.5,1815.2,5.3302]
[1746014677850,0.24149144,1815.4,1815.2,5.3302]
[1746014678336,0.24149144,1815.4,1815.1,11.06826473]
[1746014678337,0.24149144,1815.4,1815.3,4.568]
[1746014679584,0.2338782,1815.4,1815.3,10.07673133]
[1746014679766,0.2391412,1815.4,1815.3,11.63529248]
[1746014679949,0.2391412,1815.6,1815.3,11.63529248]
[1746014680770,0.2391412,1815.6,1815.3,6.12656115]
[1746014680971,0.2391412,1815.6,1815.3,11.63526426]
[1746014683082,5.7469973,1815.6,1815.3,6.12656115]
[1746014683295,0.24751001,1815.5,1815.3,6.12656115]
[1746014684485,0.24751001,1815.5,1815.3,11.63525044]
[1746014684652,5.50769955,1815.7,1815.4,1.16352504]
[1746014684988,5.50769955,1815.7,1815.3,11.63525044]
[1746014684989,0.2423488,1815.6,1815.3,11.63525044]
[1746014685149,0.75720947,1815.6,1815.3,11.63525044]
[1746014685448,0.2423488,1815.5,1815.3,11.63525044]
[1746014686485,0.2423488,1815.5,1815.3,11.63512992]
[1746014686779,0.23790503,1815.5,1815.4,5.50842789]
[1746014687084,0.23790503,1815.5,1815.4,7.22277957]
[1746014687281,0.23790503,1815.5,1815.4,8.04856603]
[1746014687650,0.25042191,1815.5,1815.4,8.04856003]
[1746014687853,0.25042191,1815.7,1815.4,13.55676838]
[1746014688193,0.25042191,1815.6,1815.4,13.55676838]
[1746014688397,5.50723542,1815.8,1815.5,6.86377111]
[1746014688690,0.76637282,1815.7,1815.5,1.35567684]
[1746014688895,0.24324974,1815.6,1815.5,1.35567684]
[1746014689098,0.75920065,1815.6,1815.5,1.35567684]
[1746014690083,1.06877119,1815.6,1815.5,1.35567684]
[1746014691183,1.06877119,1815.6,1815.4,2.54035168]
[1746014691385,0.23844416,1815.5,1815.4,2.54035168]
[1746014692288,0.23844416,1815.5,1815.4,1.71435168]
[1746014692476,0.24442697,1815.5,1815.4,7.22275151]
[1746014692654,0.23876533,1815.5,1815.4,7.22275151]
[1746014692855,0.23876533,1815.7,1815.4,7.22275151]
[1746014693266,0.51581385,1815.6,1815.5,0.72227515]
[1746014693468,0.75457918,1815.6,1815.5,0.72227515]
[1746014694386,0.75457918,1815.6,1815.5,6.23039963]
[1746014694591,0.23876533,1815.6,1815.5,7.06059963]
[1746014694790,6.26658445,1816.0,1815.6,5.50769215]
[1746014694964,1.07434959,1815.9,1815.7,4.568]
[1746014695165,0.24923451,1815.8,1815.7,4.568]
[1746014695381,0.76493297,1815.8,1815.7,4.568]
[1746014697494,1.07423538,1815.8,1815.7,4.568]
[1746014698263,0.76493297,1815.8,1815.7,4.568]
[1746014700892,6.58139661,1815.8,1815.7,4.568]
[1746014701096,1.07418216,1815.8,1815.7,4.568]
[1746014702700,1.07418216,1815.8,1815.7,6.8429]
[1746014703072,0.76493297,1815.8,1815.7,6.8429]
[1746014703275,5.50886107,1815.3,1815.1,0.8117]
[1746014703461,0.23635032,1815.2,1815.1,0.8117]
[1746014703667,0.23635032,1815.2,1815.1,10.88884068]
[1746014703867,0.23942039,1815.2,1815.1,10.88884068]
[1746014704209,0.23942039,1815.4,1815.1,13.07866422]
[1746014704504,5.50813123,1815.5,1815.1,13.07866422]
[1746014704666,0.23942039,1815.4,1815.1,13.07866422]
[1746014706311,0.23942039,1815.4,1815.1,18.58779242]
[1746014706470,0.23942039,1815.4,1815.1,13.07866312]
[1746014706671,0.23942039,1815.4,1815.2,1.30786631]
[1746014706871,0.23730597,1815.3,1815.2,6.81689592]
[1746014707175,0.23730597,1815.4,1815.2,1.30786631]
[1746014709597,0.23730597,1815.4,1815.2,6.81677054]
[1746014709802,0.2359674,1815.3,1815.2,6.81677054]
[1746014709986,0.2359674,1815.5,1815.2,6.81677054]
[1746014710169,0.2359674,1815.5,1815.2,12.32567697]
[1746014710370,0.2359674,1815.5,1815.2,6.81677054]
[1746014710574,0.2359674,1815.5,1815.3,6.27776278]
[1746014710772,0.24216925,1815.4,1815.3,6.27776278]
[1746014711204,0.24216925,1815.6,1815.3,6.27776278]
[1746014711504,5.74999432,1815.6,1815.3,7.58720762]
[1746014711703,0.24216925,1815.5,1815.3,2.07854484]
[1746014712099,0.24216925,1815.5,1815.4,4.568]
[1746014713376,0.24644618,1815.5,1815.4,4.568]
[1746014713876,0.2337349,1815.5,1815.4,4.568]
[1746014714075,0.40393355,1816.1,1815.4,4.568]
[1746014714076,12.4255397,1816.2,1815.7,6.26072597]
[1746014714403,0.2337349,1816.1,1815.8,10.07510905]
[1746014714597,5.74022768,1816.1,1815.8,4.568]
[1746014714798,0.23919609,1816.0,1815.8,4.568]
[1746014715192,0.23919609,1816.0,1815.8,7.46907913]
[1746014715600,0.23919609,1816.1,1815.8,12.97617269]
[1746014715913,0.23572707,1816.1,1815.8,12.97617269]
[1746014716210,0.23572707,1816.1,1815.9,5.50679058]
[1746014716515,0.23572707,1816.1,1815.8,12.97617269]
[1746014716802,0.23572707,1816.1,1815.9,6.80435431]
[1746014717008,14.15573143,1816.4,1816.0,6.30356909]
[1746014717175,0.76368799,1816.3,1816.0,6.30356909]
[1746014717375,0.24876161,1816.2,1816.0,6.30356909]
[1746014717576,0.24876161,1816.2,1816.0,0.7971]
[1746014717776,0.23434099,1816.1,1816.0,1.31081594]
[1746014718185,5.50602383,1816.2,1815.9,1.29761727]
[1746014718385,1.02244099,1816.1,1815.9,1.29761727]
[1746014718589,0.23434099,1816.0,1815.9,1.29761727]
[1746014721418,0.23434099,1816.0,1815.8,7.46907913]
[1746014721633,0.23434099,1816.0,1815.8,12.97618171]
[1746014722924,0.23434099,1816.0,1815.8,12.97614014]
[1746014723887,0.23434099,1816.0,1815.8,18.48319006]
[1746014724420,0.23434099,1816.0,1815.8,12.97612905]
[1746014724608,0.23434099,1816.0,1815.9,5.50691117]
[1746014729716,0.23434099,1816.0,1815.8,12.97608958]
[1746014730612,0.23434099,1816.0,1815.9,18.178]
[1746014730988,0.23434099,1816.0,1815.9,23.68491117]
[1746014731388,0.23434099,1816.0,1815.9,23.98964574]
[1746014731837,0.24021811,1816.0,1815.9,23.98964574]
[1746014732286,0.24021811,1816.0,1815.9,27.68611185]
[1746014732711,0.24295192,1816.0,1815.9,27.68611185]
[1746014732911,0.24295192,1816.2,1815.9,27.68611185]
[1746014733121,0.24295192,1816.2,1815.9,23.98953832]
[1746014734825,0.24295192,1816.2,1815.9,23.98948985]
[1746014735530,0.24295192,1816.2,1816.0,4.566]
[1746014735716,0.24295192,1816.2,1816.1,0.30927709]
[1746014737692,0.24295192,1816.2,1816.1,6.42064222]
[1746014737893,1.2933,1816.7,1816.4,5.50525328]
[1746014738105,0.23483116,1816.6,1816.5,4.566]
[1746014738330,0.23483116,1816.6,1816.5,4.87478009]
[1746014740035,0.23483116,1816.6,1816.5,11.19402088]
[1746014740195,0.23483116,1816.6,1816.5,11.1389723]
[1746014740393,0.23483116,1816.6,1816.5,12.80339167]
[1746014740609,0.7618,1816.9,1816.7,5.50448615]
[1746014740818,0.24571845,1816.8,1816.7,5.50448615]
[1746014741319,6.9627,1817.1,1816.8,6.25815885]
[1746014741635,0.24571845,1817.0,1816.9,4.566]
[1746014744329,0.24571845,1817.0,1816.9,5.0226]
[1746014745632,5.74929577,1817.0,1816.9,5.0226]
[1746014745931,5.74929577,1817.0,1816.9,4.566]
[1746014746244,0.24571845,1817.0,1816.9,4.566]
[1746014746545,5.74929577,1817.0,1816.9,4.566]
[1746014747135,0.24571845,1817.0,1816.9,4.566]
[1746014748737,5.74929577,1817.0,1816.9,4.566]
[1746014752366,8.56345955,1817.0,1816.9,4.566]
[1746014752802,11.63225843,1817.0,1816.9,4.566]
[1746014753125,12.07638476,1817.0,1816.9,4.566]
[1746014753504,12.07638476,1817.0,1816.9,4.85066483]
[1746014753700,12.38417202,1817.0,1816.9,4.85066483]
[1746014755019,12.07638476,1817.0,1816.9,4.85066483]
[1746014755231,7.73284366,1817.0,1816.9,4.85066483]
[1746014755620,6.90864366,1817.0,1816.9,4.85066483]
[1746014755831,12.41222098,1817.0,1816.9,4.85066483]
[1746014756135,12.70039577,1817.0,1816.9,4.85066483]
[1746014756538,12.70039577,1817.0,1816.9,4.566]
[1746014756760,14.68919955,1817.0,1816.9,4.566]
[1746014757035,18.20225622,1817.0,1816.9,4.85109004]
[1746014757925,18.51015925,1817.0,1816.9,4.85109004]
[1746014759008,18.20225622,1817.0,1816.9,4.85109004]
[1746014760550,18.5103177,1817.0,1816.9,4.85109004]
[1746014771887,5.50620206,1816.2,1816.0,0.803]
[1746014772093,0.23491385,1816.1,1815.8,18.171]
[1746014772391,5.50681493,1816.0,1815.9,4.563]
[1746014772589,0.23491385,1816.0,1815.9,4.563]
[1746014773148,6.50172177,1816.0,1815.9,4.563]
[1746014773775,7.01601453,1816.0,1815.9,4.563]
[1746014773967,7.32459823,1816.0,1815.9,4.563]
[1746014774366,7.39343607,1816.0,1815.9,4.563]
[1746014774568,7.08485237,1816.0,1815.9,4.563]
[1746014775184,6.57055961,1816.0,1815.9,4.563]
[1746014776594,8.49283432,1816.0,1815.9,4.563]
[1746014776810,17.64283432,1816.0,1815.9,4.563]
[1746014776999,17.95097801,1816.0,1815.9,4.563]
[1746014777153,18.46456628,1816.0,1815.9,4.563]
[1746014779481,18.46456628,1816.0,1815.9,4.82901825]
[1746014782087,18.46456628,1816.0,1815.9,4.563]
[1746014782766,18.46456628,1816.0,1815.9,4.83575329]
[1746014784719,18.15642259,1816.0,1815.9,4.83575329]
[1746014786719,18.46377687,1816.0,1815.9,4.83575329]
[1746014788011,18.15642259,1816.0,1815.9,4.83575329]
[1746014792525,18.46396965,1816.0,1815.9,4.83575329]
[1746014800643,17.70376965,1816.0,1815.9,4.83575329]
[1746014809422,18.47336965,1816.0,1815.9,4.83575329]
[1746014812469,18.76043434,1816.0,1815.9,1e-08]
[1746014812996,7.19164981,1815.7,1815.6,4.565]
[1746014813280,14.8597094,1815.7,1815.6,4.565]
[1746014813562,16.51254473,1815.7,1815.6,4.565]
[1746014814856,16.92723033,1815.7,1815.6,4.565]
[1746014815554,16.09553033,1815.7,1815.6,4.565]
[1746014815758,14.82563048,1815.7,1815.6,4.565]
[1746014817465,18.65093048,1815.7,1815.6,4.565]
[1746014818326,5.50842789,1815.4,1815.3,18.18]
[1746014818522,7.43962738,1815.4,1815.3,22.745]
[1746014818765,8.26076271,1815.4,1815.3,22.745]
[1746014819937,8.26076271,1815.4,1815.3,22.95479149]
[1746014820678,6.57663066,1815.4,1815.3,22.95479149]
[1746014822270,1.06820277,1815.4,1815.3,23.73319149]
[1746014822471,1.06820277,1815.4,1815.3,26.11173064]
[1746014822642,0.5546145,1815.4,1815.3,31.62046197]
[1746014823150,0.24706744,1815.4,1815.3,31.62046197]
[1746014823468,5.50812448,1815.5,1815.4,0.7784]
[1746014823760,5.75081906,1815.5,1815.4,0.99258978]
[1746014823943,6.26601468,1815.5,1815.4,0.99258978]
[1746014824868,10.92096404,1815.5,1815.4,0.21418978]
[1746014825032,10.92096404,1815.5,1815.4,4.77818978]
[1746014825751,17.07096404,1815.5,1815.4,4.77818978]
[1746014826166,15.72515395,1815.5,1815.4,4.77818978]
[1746014827966,16.54045395,1815.5,1815.4,4.77818978]
[1746014830739,15.72515395,1815.5,1815.4,4.77818978]
[1746014831168,16.49165395,1815.5,1815.4,4.77818978]
[1746014832157,16.49165395,1815.5,1815.4,4.564]
[1746014832473,18.86002797,1815.5,1815.4,4.564]
[1746014833077,18.86002797,1815.5,1815.4,4.78053144]
[1746014833281,18.86002797,1815.5,1815.4,4.564]
[1746014834777,18.09352797,1815.5,1815.4,4.564]
[1746014835081,18.09352797,1815.5,1815.4,4.78067337]
[1746014839255,15.72515395,1815.5,1815.4,4.78067337]
[1746014858324,16.52425395,1815.5,1815.4,4.78067337]
[1746014858495,15.72515395,1815.5,1815.4,4.78067337]
[1746014861430,16.47805395,1815.5,1815.4,4.78067337]
[1746014867337,6.32423481,1815.2,1815.1,0.05]
[1746014867499,14.77894968,1815.2,1815.1,0.05]
[1746014867834,18.22527023,1815.2,1815.1,0.05]
[1746014868039,18.63566349,1815.2,1815.1,0.05]
[1746014873543,5.51024906,1814.8,1814.7,0.7679]
[1746014873743,13.58133922,1814.8,1814.7,4.564]
[1746014873923,14.40567411,1814.8,1814.7,4.564]
[1746014874941,14.40567411,1814.8,1814.7,4.74545747]
[1746014876237,14.40532394,1814.8,1814.7,4.74545747]
[1746014880755,17.40532394,1814.8,1814.7,4.74545747]
[1746014883464,17.40532394,1814.8,1814.7,5.54695747]
[1746014884866,15.72119189,1814.8,1814.7,5.54695747]
[1746014886665,15.72119189,1814.8,1814.7,4.74545747]
[1746014888570,17.40532394,1814.8,1814.7,4.74545747]
[1746014888769,19.77610448,1814.8,1814.7,4.74545747]
[1746014889568,18.09197243,1814.8,1814.7,4.74545747]
[1746014892361,18.87717243,1814.8,1814.7,4.74545747]
[1746014893362,18.09197243,1814.8,1814.7,4.74545747]
[1746014894274,15.72119189,1814.8,1814.7,4.74545747]
[1746014896083,15.72119189,1814.8,1814.7,4.564]
[1746014899187,5.51116009,1814.5,1814.4,5.3354]
[1746014899356,8.74836891,1814.5,1814.4,5.3354]
[1746014899556,9.26321436,1814.5,1814.4,5.51045611]
[1746014899986,9.68704595,1814.5,1814.4,5.51045611]
[1746014900186,9.99618522,1814.5,1814.4,5.51045611]
[1746014900553,11.71531637,1814.5,1814.4,4.73805611]
[1746014902191,17.86531637,1814.5,1814.4,4.73805611]
[1746014902496,17.86531637,1814.5,1814.4,0.17505611]
[1746014902791,5.51146384,1814.4,1814.3,0.93884075]
[1746014902979,13.5964935,1814.4,1814.3,0.93884075]
[1746014903182,13.90563277,1814.4,1814.3,0.93884075]
[1746014903393,17.00971833,1814.4,1814.3,0.93884075]
[1746014905695,17.00971833,1814.4,1814.3,1.10210696]
[1746014909880,17.00971833,1814.4,1814.3,0.16326621]
[1746014914570,12.73634617,1814.4,1814.3,0.16326621]
[1746014927334,5.51176762,1814.3,1814.2,4.563]
[1746014927495,8.75342992,1814.3,1814.2,4.71895815]
[1746014927830,9.06256919,1814.3,1814.2,4.71895815]
[1746014928308,9.57876269,1814.3,1814.2,4.71895815]
[1746014930210,11.85323787,1814.3,1814.2,4.71895815]
[1746014930410,11.78433534,1814.3,1814.2,4.71895815]
[1746014930607,13.46846739,1814.3,1814.2,4.71895815]
[1746014931414,19.61846739,1814.3,1814.2,4.71895815]
[1746014934520,19.61846739,1814.3,1814.2,4.563]
[1746014935318,19.61846739,1814.3,1814.2,4.71895815]
[1746014935514,19.61846739,1814.3,1814.2,4.563]
[1746014938889,19.61846739,1814.3,1814.2,4.71895815]
[1746014939090,19.61846739,1814.3,1814.2,0.15595815]
[1746014939310,5.51207143,1814.2,1814.1,0.05]
[1746014939623,6.26901543,1814.2,1814.1,0.20595815]
[1746014940026,6.5781547,1814.2,1814.1,0.20595815]
[1746014943120,12.7281547,1814.2,1814.1,0.20595815]
[1746014944820,12.7281547,1814.2,1814.1,0.97935815]
[1746014945223,7.21608327,1814.2,1814.1,1.53359396]
[1746014945535,12.7281547,1814.2,1814.1,1.53359396]
[1746014946293,12.7281547,1814.2,1814.1,0.97935815]
[1746014946493,13.93192534,1814.2,1814.1,0.20595815]
[1746014946731,12.7281547,1814.2,1814.1,0.20595815]
[1746014952698,12.7281547,1814.2,1814.1,1.02425815]
[1746014958450,12.72852423,1814.2,1814.1,1.02425815]
[1746014958649,12.72852423,1814.2,1814.1,1.58298397]
[1746014958854,12.72932002,1814.2,1814.1,1.02425815]
[1746014959149,12.72932002,1814.2,1814.1,0.20595815]
[1746014966706,18.20060363,1814.2,1814.1,1e-08]
[1746014966910,20.57184076,1814.2,1814.1,1e-08]
[1746014967148,5.51298307,1813.9,1813.8,4.561]
[1746014967315,11.91205777,1813.9,1813.8,4.561]
[1746014967656,13.94299526,1813.9,1813.8,4.561]
[1746014969512,12.73855586,1813.9,1813.8,4.561]
[1746014970562,14.73231243,1813.9,1813.8,4.561]
[1746014972379,15.13824878,1813.9,1813.8,4.561]
[1746014973289,18.13824878,1813.9,1813.8,4.561]
[1746014973577,18.94204878,1813.9,1813.8,4.561]
[1746014974342,18.94204878,1813.9,1813.8,4.66910253]
[1746014974542,16.14449221,1813.9,1813.8,4.66910253]
[1746014976844,18.63878705,1813.9,1813.8,4.66910253]
[1746014977044,5.51480725,1813.3,1813.2,0.86240319]
[1746014977250,5.74878976,1813.3,1813.2,4.562]